fUSD/lending_fUSD_20241106
["ID","MTS","AMOUNT","RATE_DAILY","PERIOD"]
[341478662,1730920273822,-500.0,0.00029041,2]
[341478663,1730920273832,-500.0,0.00029041,2]
[341478664,1730920273842,-500.0,0.00029041,2]
[341478665,1730920273851,-1379.21,0.00029041,2]
[341478666,1730920273863,-175.94184994,0.00029041,2]
[341478667,1730920273872,-1209.69,0.00029041,2]
[341478668,1730920273881,-500.0,0.00029041,2]
[341478669,1730920273892,-500.0,0.00029041,2]
[341478670,1730920273901,-1638.01,0.00029041,2]
[341478671,1730920273911,-479.88419226,0.00029041,2]
[341478672,1730920273920,-500.0,0.00029041,2]
[341478673,1730920273929,-1179.88,0.00029041,2]
[341478674,1730920273939,-500.0,0.00029041,2]
[341478675,1730920273949,-639.69,0.00029041,2]
[341478676,1730920273958,-500.0,0.00029041,2]
[341478677,1730920273969,-600.21,0.00029041,2]
[341478678,1730920273978,-500.0,0.00029041,2]
[341478679,1730920273987,-500.0,0.00029041,2]
[341478680,1730920273997,-500.0,0.00029041,2]
[341478681,1730920274007,-500.0,0.00029041,2]
[341478682,1730920274017,-912.36,0.00029041,2]
[341478683,1730920274029,-500.0,0.00029041,2]
[341478684,1730920274038,-500.0,0.00029041,2]
[341478685,1730920274048,-508.65,0.00029041,2]
[341478686,1730920274058,-645.6316605,0.00029041,2]
[341478687,1730920274067,-500.0,0.00029041,2]
[341478688,1730920274077,-500.0,0.00029041,2]
[341478689,1730920274087,-610.62,0.00029041,2]
[341478690,1730920274097,-500.0,0.00029041,2]
[341478691,1730920274107,-547.99182576,0.00029041,2]
[341478692,1730920274117,-500.0,0.00029041,2]
[341478693,1730920274127,-500.0,0.00029041,2]
[341478694,1730920274136,-500.0,0.00029041,2]
[341478695,1730920274146,-500.0,0.00029041,2]
[341478696,1730920274156,-500.0,0.00029041,2]
[341478697,1730920274165,-1403.53,0.00029041,2]
[341478698,1730920274175,-951.98,0.00029041,2]
[341478699,1730920274185,-500.0,0.00029041,2]
[341478700,1730920274194,-500.0,0.00029041,2]
[341478701,1730920274204,-279.98186841,0.00029041,2]
[341478702,1730920274214,-560.68630408,0.00029041,2]
[341478703,1730920274223,-1718.49,0.00029041,2]
[341478704,1730920274233,-500.0,0.00029041,2]
[341478705,1730920274244,-770.26,0.00029041,2]
[341478706,1730920274254,-534.23,0.00029041,2]
[341478707,1730920274264,-886.88,0.00029041,2]
[341478708,1730920274274,-500.0,0.00029041,2]
[341478709,1730920274283,-500.0,0.00029041,2]
[341478710,1730920274294,-500.0,0.00029041,2]
[341478711,1730920274303,-591.92,0.00029041,2]
[341478712,1730920274313,-3128.73,0.00029041,2]
[341478713,1730920274323,-1587.38,0.00029041,2]
[341478714,1730920274332,-500.0,0.00029041,2]
[341478715,1730920274341,-500.0,0.00029041,2]
[341478716,1730920274351,-672.38,0.00029041,2]
[341478717,1730920274361,-1225.74,0.00029041,2]
[341478718,1730920274371,-631.72,0.00029041,2]
[341478719,1730920274380,-500.0,0.00029041,2]
[341478720,1730920274389,-1710.63,0.00029041,2]
[341478721,1730920274398,-545.28987204,0.00029041,2]
[341478722,1730920274408,-500.0,0.00029041,2]
[341478723,1730920274417,-500.0,0.00029041,2]
[341478724,1730920274426,-813.74,0.00029041,2]
[341478725,1730920274435,-500.0,0.00029041,2]
[341478726,1730920274444,-500.0,0.00029041,2]
[341478727,1730920274454,-500.0,0.00029041,2]
[341478728,1730920274463,-747.59,0.00029041,2]
[341478729,1730920274472,-1093.9,0.00029041,2]
[341478730,1730920274482,-520.73855508,0.00029041,2]
[341478731,1730920274490,-500.0,0.00029041,2]
[341478732,1730920274500,-500.0,0.00029041,2]
[341478733,1730920274509,-500.0,0.00029041,2]
[341478734,1730920274518,-500.0,0.00029041,2]
[341478735,1730920274528,-500.0,0.00029041,2]
[341478736,1730920274537,-559.12,0.00029041,2]
[341478737,1730920274546,-500.0,0.00029041,2]
[341478738,1730920274555,-500.0,0.00029041,2]
[341478739,1730920274565,-869.22,0.00029041,2]
[341478740,1730920274574,-500.0,0.00029041,2]
[341478741,1730920274584,-815.31,0.00029041,2]
[341478742,1730920274593,-828.15,0.00029041,2]
[341478743,1730920274602,-500.0,0.00029041,2]
[341478744,1730920274613,-948.69,0.00029041,2]
[341478745,1730920274622,-500.0,0.00029041,2]
[341478746,1730920274633,-500.0,0.00029041,2]
[341478747,1730920274644,-6450.1,0.00029041,2]
[341478748,1730920274653,-712.2,0.00029041,2]
[341478749,1730920274663,-500.0,0.00029041,2]
[341478750,1730920274674,-1961.14,0.00029041,2]
[341478751,1730920274684,-2553.79,0.00029041,2]
[341478752,1730920274694,-933.76,0.00029041,2]
[341478753,1730920274703,-423.65433616,0.00029041,2]
[341478754,1730920274713,-500.0,0.00029041,2]
[341478755,1730920274723,-619.47,0.00029041,2]
[341478756,1730920274732,-151.0,0.00029041,7]
[341478757,1730920274742,-1552.17,0.00029041,2]
[341478758,1730920274751,-852.71,0.00029041,2]
[341478759,1730920274761,-500.0,0.00029041,2]
[341478760,1730920274771,-985.31,0.00029041,2]
[341478761,1730920274780,-500.0,0.00029041,2]
[341478762,1730920274790,-1319.54,0.00029041,2]
[341478763,1730920274799,-500.0,0.00029041,2]
[341478764,1730920274808,-1040.45,0.00029041,2]
[341478765,1730920274818,-544.73,0.00029041,2]
[341478766,1730920274827,-201.220383,0.00029041,7]
[341478767,1730920274836,-1047.75,0.00029041,2]
[341478768,1730920274845,-201.220383,0.00029041,7]
[341478769,1730920274856,-1243.71,0.00029041,2]
[341478770,1730920274869,-500.0,0.00029041,2]
[341478771,1730920274879,-809.24,0.00029041,2]
[341478772,1730920274888,-500.0,0.00029041,2]
[341478773,1730920274897,-508.7,0.00029041,2]
[341478774,1730920274907,-2961.59,0.00029041,2]
[341478775,1730920274916,-1768.07,0.00029041,2]
[341478776,1730920274925,-500.0,0.00029041,2]
[341478777,1730920274935,-3662.42,0.00029041,2]
[341478778,1730920275026,-255.35525268,0.00029041,2]
[341478779,1730920275036,-500.0,0.00029041,2]
[341478780,1730920275046,-626.81,0.00029041,2]
[341478781,1730920275055,-543.01,0.00029041,2]
[341478782,1730920275064,-706.05,0.00029041,2]
[341478783,1730920275074,-500.0,0.00029041,2]
[341478784,1730920275083,-500.0,0.00029041,2]
[341478785,1730920275093,-280.903323,0.00029041,7]
[341478786,1730920275102,-192.03770725,0.00029041,2]
[341478787,1730920275114,-651.62,0.00029041,2]
[341478788,1730920275124,-2251.89,0.00029041,2]
[341478789,1730920275133,-500.0,0.00029041,2]
[341478790,1730920275143,-1884.31,0.00029041,2]
[341478791,1730920275153,-280.903323,0.00029041,7]
[341478792,1730920275162,-732.87,0.00029041,2]
[341478793,1730920275171,-500.0,0.00029041,2]
[341478794,1730920275180,-500.0,0.00029041,2]
[341478795,1730920275190,-500.0,0.00029041,2]
[341478796,1730920275199,-151.0,0.00029041,7]
[341478797,1730920275208,-2703.76,0.00029041,2]
[341478798,1730920275218,-759.2,0.00029041,2]
[341478799,1730920275227,-730.51,0.00029041,2]
[341478800,1730920275237,-151.0,0.00029041,7]
[341478801,1730920275246,-151.0,0.00029041,7]
[341478802,1730920275255,-601.73,0.00029041,2]
[341478803,1730920275264,-458.82050252,0.00029041,2]
[341478804,1730920275274,-4472.046259,0.00029041,7]
[341478805,1730920275284,-1846.6,0.00029041,2]
[341478806,1730920275293,-500.0,0.00029041,2]
[341478807,1730920275302,-500.0,0.00029041,2]
[341478808,1730920275312,-151.0,0.00029041,7]
[341478809,1730920275322,-500.0,0.00029041,2]
[341478810,1730920275332,-2388.47,0.00029041,2]
[341478811,1730920275342,-4472.046259,0.00029041,7]
[341478812,1730920275351,-10275.63,0.00029041,2]
[341478813,1730920275363,-217.442755,0.00029041,2]
[341478814,1730920275372,-500.0,0.00029041,2]
[341478815,1730920275383,-1087.87,0.00029041,2]
[341478816,1730920275392,-228.879307,0.00029041,2]
[341478817,1730920275402,-1027.83,0.00029041,2]
[341478818,1730920275411,-500.0,0.00029041,2]
[341478819,1730920275421,-934.72,0.00029041,2]
[341478820,1730920275430,-500.0,0.00029041,2]
[341478821,1730920275440,-500.0,0.00029041,2]
[341478822,1730920275450,-500.0,0.00029041,2]
[341478823,1730920275459,-680.02,0.00029041,2]
[341478824,1730920275469,-984.02,0.00029041,2]
[341478825,1730920275478,-2654.17,0.00029041,2]
[341478826,1730920275487,-151.0,0.00029041,7]
[341478827,1730920275497,-500.0,0.00029041,2]
[341478828,1730920275506,-763.29,0.00029041,2]
[341478829,1730920275515,-2923.01,0.00029041,2]
[341478830,1730920275525,-500.0,0.00029041,2]
[341478831,1730920275535,-500.0,0.00029041,2]
[341478832,1730920275544,-500.0,0.00029041,2]
[341478833,1730920275554,-151.0,0.00029041,7]
[341478834,1730920275563,-511.85356406,0.00029041,2]
[341478835,1730920275573,-1057.64,0.00029041,2]
[341478836,1730920275582,-500.0,0.00029041,2]
[341478837,1730920275592,-500.0,0.00029041,2]
[341478838,1730920275602,-500.0,0.00029041,2]
[341478839,1730920275613,-500.0,0.00029041,2]
[341478840,1730920275624,-151.0,0.00029041,7]
[341478841,1730920275636,-669.62,0.00029041,2]
[341478842,1730920275645,-718.6,0.00029041,2]
[341478843,1730920275655,-500.0,0.00029041,2]
[341478844,1730920275664,-3084.36,0.00029041,2]
[341478845,1730920275674,-500.0,0.00029041,2]
[341478846,1730920275684,-500.0,0.00029041,2]
[341478847,1730920275694,-727.89,0.00029041,2]
[341478848,1730920275703,-1861.65,0.00029041,2]
[341478849,1730920275713,-500.0,0.00029041,2]
[341478850,1730920275724,-36940.57,0.00029041,2]
[341478851,1730920275734,-500.0,0.00029041,2]
[341478852,1730920275744,-1316.34,0.00029041,2]
[341478853,1730920275753,-500.0,0.00029041,2]
[341478854,1730920275762,-3009.75,0.00029041,2]
[341478855,1730920275772,-640.34011858,0.00029041,2]
[341478856,1730920275782,-500.0,0.00029041,2]
[341478857,1730920275792,-1149.45,0.00029041,2]
[341478858,1730920275802,-500.0,0.00029041,2]
[341478859,1730920275811,-500.0,0.00029041,2]
[341478860,1730920275820,-151.0,0.00029041,7]
[341478861,1730920275830,-580.25,0.00029041,2]
[341478862,1730920275839,-539.21,0.00029041,2]
[341478863,1730920275848,-4459.35,0.00029041,2]
[341478864,1730920275857,-6541.84,0.00029041,2]
[341478865,1730920275868,-1631.52,0.00029041,2]
[341478866,1730920275877,-151.0,0.00029041,7]
[341478867,1730920275886,-777.39,0.00029041,2]
[341478868,1730920275895,-500.0,0.00029041,2]
[341478869,1730920275904,-500.0,0.00029041,2]
[341478870,1730920275914,-500.0,0.00029041,2]
[341478871,1730920275923,-2448.68,0.00029041,2]
[341478872,1730920275932,-1611.55,0.00029041,2]
[341478873,1730920275941,-1675.07,0.00029041,2]
[341478874,1730920275951,-2842.56,0.00029041,2]
[341478875,1730920275960,-500.0,0.00029041,2]
[341478876,1730920275970,-2090.64,0.00029041,2]
[341478877,1730920275979,-151.0,0.00029041,7]
[341478878,1730920275989,-729.17,0.00029041,2]
[341478879,1730920275999,-4119.94,0.00029041,2]
[341478880,1730920276009,-500.0,0.00029041,2]
[341478881,1730920276018,-500.0,0.00029041,2]
[341478882,1730920276028,-1561.32,0.00029041,2]
[341478883,1730920276038,-500.0,0.00029041,2]
[341478884,1730920276048,-1446.82,0.00029041,2]
[341478885,1730920276060,-908.03,0.00029041,2]
[341478886,1730920276069,-355.42726901,0.00029041,2]
[341478887,1730920276079,-500.0,0.00029041,2]
[341478888,1730920276089,-500.0,0.00029041,2]
[341478889,1730920276098,-151.0,0.00029041,7]
[341478890,1730920276109,-1649.61,0.00029041,2]
[341478891,1730920276119,-267.03283604,0.00029041,2]
[341478892,1730920276129,-3168.62,0.00029041,2]
[341478893,1730920276138,-3106.24,0.00029041,2]
[341478894,1730920276147,-731.26,0.00029041,2]
[341478895,1730920276156,-3266.44,0.00029041,2]
[341478896,1730920276165,-500.0,0.00029041,2]
[341478897,1730920276174,-500.0,0.00029041,2]
[341478898,1730920276183,-752.29,0.00029041,2]
[341478899,1730920276193,-714.92,0.00029041,2]
[341478900,1730920276203,-2478.44,0.00029041,2]
[341478901,1730920276212,-645.24,0.00029041,2]
[341478902,1730920276222,-822.65,0.00029041,2]
[341478903,1730920276231,-2093.22,0.00029041,2]
[341478904,1730920276240,-6208.06,0.00029041,2]
[341478905,1730920276249,-1251.86,0.00029041,2]
[341478906,1730920276259,-2267.91,0.00029041,2]
[341478907,1730920276268,-151.0,0.00029041,7]
[341478908,1730920276277,-932.36,0.00029041,2]
[341478909,1730920276287,-500.0,0.00029041,2]
[341478910,1730920276296,-1161.0,0.00029041,2]
[341478911,1730920276305,-831.94,0.00029041,2]
[341478912,1730920276314,-726.61,0.00029041,2]
[341478913,1730920276324,-627.41,0.00029041,2]
[341478914,1730920276333,-500.0,0.00029041,2]
[341478915,1730920276342,-1820.52,0.00029041,2]
[341478916,1730920276351,-1064.72,0.00029041,2]
[341478917,1730920276362,-1990.87,0.00029041,2]
[341478918,1730920276371,-750.06,0.00029041,2]
[341478919,1730920276381,-500.0,0.00029041,2]
[341478920,1730920276390,-10580.04,0.00029041,2]
[341478921,1730920276399,-5050.46,0.00029041,2]
[341478922,1730920276408,-1538.2,0.00029041,2]
[341478923,1730920276418,-445.3,0.00029041,2]
[341478924,1730920276427,-1128.8,0.00029041,2]
[341478925,1730920276436,-337.82822943,0.00029041,2]
[341478926,1730920276445,-7716.34,0.00029041,2]
[341478927,1730920276454,-151.0,0.00029041,7]
[341478928,1730920276463,-3986.66,0.00029041,2]
[341478929,1730920276472,-500.0,0.00029041,2]
[341478930,1730920276482,-656.74,0.00029041,2]
[341478931,1730920276490,-500.63,0.00029041,2]
[341478932,1730920276499,-5027.84,0.00029041,2]
[341478933,1730920276511,-500.0,0.00029041,2]
[341478934,1730920276520,-4036.63,0.00029041,2]
[341478935,1730920276528,-500.0,0.00029041,2]
[341478936,1730920276538,-6250.81,0.00029041,2]
[341478937,1730920276547,-934.04,0.00029041,2]
[341478938,1730920276557,-500.0,0.00029041,2]
[341478939,1730920276566,-500.0,0.00029041,2]
[341478940,1730920276575,-2428.87,0.00029041,2]
[341478941,1730920276584,-3700.97,0.00029041,2]
[341478942,1730920276593,-151.0,0.00029041,7]
[341478943,1730920276602,-1135.07,0.00029041,2]
[341478944,1730920276612,-3817.82,0.00029041,2]
[341478945,1730920276621,-3046.7,0.00029041,2]
[341478946,1730920276630,-3060.48,0.00029041,2]
[341478947,1730920276642,-740.35,0.00029041,2]
[341478948,1730920276651,-500.0,0.00029041,2]
[341478949,1730920276659,-1194.34,0.00029041,2]
[341478950,1730920276669,-3836.62,0.00029041,2]
[341478951,1730920276678,-4916.89,0.00029041,2]
[341478952,1730920276687,-500.0,0.00029041,2]
[341478953,1730920276696,-3245.5,0.00029041,2]
[341478954,1730920276705,-151.0,0.00029041,7]
[341478955,1730920276715,-1506.02,0.00029041,2]
[341478956,1730920276724,-2015.43,0.00029041,2]
[341478957,1730920276733,-151.0,0.00029041,7]
[341478958,1730920276742,-512.382164,0.00029041,7]
[341478959,1730920276751,-500.0,0.00029041,2]
[341478960,1730920276760,-1997.41,0.00029041,2]
[341478961,1730920276769,-548.49,0.00029041,2]
[341478962,1730920276778,-500.0,0.00029041,2]
[341478963,1730920276787,-500.0,0.00029041,2]
[341478964,1730920276806,-1188.15,0.00029041,2]
[341478965,1730920276815,-512.382164,0.00029041,7]
[341478966,1730920276826,-3551.02,0.00029041,2]
[341478967,1730920276835,-151.0,0.00029041,7]
[341478968,1730920276844,-9431.91,0.00029041,2]
[341478969,1730920276853,-500.0,0.00029041,2]
[341478970,1730920276865,-555.75149945,0.00029041,2]
[341478971,1730920276879,-500.0,0.00029041,2]
[341478972,1730920276888,-543.87,0.00029041,2]
[341478973,1730920276897,-500.0,0.00029041,2]
[341478974,1730920276907,-2959.67,0.00029041,2]
[341478975,1730920276916,-843.81,0.00029041,2]
[341478976,1730920276925,-151.0,0.00029041,7]
[341478977,1730920276934,-500.0,0.00029041,2]
[341478978,1730920276944,-2640.34,0.00029041,2]
[341478979,1730920276953,-2985.74,0.00029041,2]
[341478980,1730920276962,-643.72,0.00029041,2]
[341478981,1730920276971,-500.0,0.00029041,2]
[341478982,1730920276980,-565.32980718,0.00029041,2]
[341478983,1730920276990,-3511.16,0.00029041,2]
[341478984,1730920276999,-642.61,0.00029041,2]
[341478985,1730920277008,-528.21,0.00029041,2]
[341478986,1730920277018,-151.0,0.00029041,7]
[341478987,1730920277027,-500.0,0.00029041,2]
[341478988,1730920277037,-636.38,0.00029041,2]
[341478989,1730920277047,-500.0,0.00029041,2]
[341478990,1730920277056,-209.1399869,0.00029041,2]
[341478991,1730920277065,-836.94,0.00029041,2]
[341478992,1730920277075,-817.7,0.00029041,2]
[341478993,1730920277085,-1645.62,0.00029041,2]
[341478994,1730920277095,-500.0,0.00029041,2]
[341478995,1730920277103,-500.0,0.00029041,2]
[341478996,1730920277119,-820.62,0.00029041,2]
[341478997,1730920277129,-500.0,0.00029041,2]
[341478998,1730920277138,-1697.61,0.00029041,2]
[341478999,1730920277147,-1293.6,0.00029041,2]
[341479000,1730920277157,-500.0,0.00029041,2]
[341479001,1730920277166,-643.83,0.00029041,2]
[341479002,1730920277176,-4036.84,0.00029041,2]
[341479003,1730920277185,-2894.45,0.00029041,2]
[341479004,1730920277194,-500.0,0.00029041,2]
[341479005,1730920277204,-500.0,0.00029041,2]
[341479006,1730920277213,-500.0,0.00029041,2]
[341479007,1730920277222,-500.0,0.00029041,2]
[341479008,1730920277231,-500.0,0.00029041,2]
[341479009,1730920277242,-685.09,0.00029078,2]
[341479010,1730920277251,-1500.0,0.00029177,2]
[341479011,1730920277261,-221.57,0.00029268,120]
[341479012,1730920277271,-661.67,0.00029314,2]
[341479013,1730920277280,-153.78725081,0.00029314,2]
[341479014,1730920277290,-500.0,0.00029315,2]
[341479015,1730920277299,-177.62546592,0.00029315,2]
[341479016,1730920277309,-500.0,0.00029315,2]
[341479017,1730920277318,-2920.66,0.00029315,2]
[341479018,1730920277327,-436.47169207,0.00029315,2]
[341479019,1730920277336,-614.25,0.00029315,2]
[341479020,1730920277346,-500.0,0.00029315,2]
[341479021,1730920277356,-500.0,0.00029315,2]
[341479022,1730920277367,-574.18,0.00029315,2]
[341479023,1730920277377,-500.0,0.00029315,2]
[341479024,1730920277386,-1205.75,0.00029315,2]
[341479025,1730920277396,-750.76,0.00029315,2]
[341479026,1730920277405,-500.0,0.00029315,2]
[341479027,1730920277415,-500.0,0.00029315,2]
[341479028,1730920277425,-1062.35,0.00029315,2]
[341479029,1730920277435,-500.0,0.00029315,2]
[341479030,1730920277444,-997.57,0.00029315,2]
[341479031,1730920277454,-500.0,0.00029315,2]
[341479032,1730920277463,-500.0,0.00029315,2]
[341479033,1730920277472,-500.0,0.00029315,2]
[341479034,1730920277482,-500.0,0.00029315,2]
[341479035,1730920277492,-1292.06,0.00029315,2]
[341479036,1730920277501,-500.0,0.00029315,2]
[341479037,1730920277511,-500.0,0.00029315,2]
[341479038,1730920277520,-500.0,0.00029315,2]
[341479039,1730920277530,-500.0,0.00029315,2]
[341479040,1730920277539,-500.0,0.00029315,2]
[341479041,1730920277548,-1826.45,0.00029315,2]
[341479042,1730920277559,-621.32,0.00029315,2]
[341479043,1730920277570,-500.0,0.00029315,2]
[341479044,1730920277580,-663.78,0.00029315,2]
[341479045,1730920277589,-546.43,0.00029315,2]
[341479046,1730920277599,-500.0,0.00029315,2]
[341479047,1730920277609,-617.91,0.00029315,2]
[341479048,1730920277618,-500.0,0.00029315,2]
[341479049,1730920277628,-500.0,0.00029315,2]
[341479050,1730920277640,-1790.04,0.00029315,2]
[341479051,1730920277651,-500.0,0.00029315,2]
[341479052,1730920277663,-500.0,0.00029315,2]
[341479053,1730920277674,-1554.56,0.00029315,2]
[341479054,1730920277684,-500.0,0.00029315,2]
[341479055,1730920277695,-500.0,0.00029315,2]
[341479056,1730920277704,-525.88,0.00029315,2]
[341479057,1730920277715,-500.0,0.00029315,2]
[341479058,1730920277724,-500.0,0.00029315,2]
[341479059,1730920277736,-711.29,0.00029315,2]
[341479060,1730920277747,-500.0,0.00029315,2]
[341479061,1730920277757,-500.0,0.00029315,2]
[341479062,1730920277766,-1234.48,0.00029315,2]
[341479063,1730920277776,-500.0,0.00029315,2]
[341479064,1730920277786,-500.0,0.00029315,2]
[341479065,1730920277797,-1153.06,0.00029315,2]
[341479066,1730920277807,-500.0,0.00029315,2]
[341479067,1730920277818,-500.0,0.00029315,2]
[341479068,1730920277828,-500.0,0.00029315,2]
[341479069,1730920277838,-500.0,0.00029315,2]
[341479070,1730920277847,-500.0,0.00029315,2]
[341479071,1730920277858,-957.34,0.00029315,2]
[341479072,1730920277868,-500.0,0.00029315,2]
[341479073,1730920277878,-500.0,0.00029315,2]
[341479074,1730920277887,-500.0,0.00029315,2]
[341479075,1730920277897,-500.0,0.00029315,2]
[341479076,1730920277907,-1196.66,0.00029315,2]
[341479077,1730920277916,-500.0,0.00029315,2]
[341479078,1730920277925,-500.0,0.00029315,2]
[341479079,1730920277935,-1001.64,0.00029315,2]
[341479080,1730920277944,-562.30823372,0.00029315,2]
[341479081,1730920277954,-1472.58,0.00029315,2]
[341479082,1730920277965,-500.0,0.00029315,2]
[341479083,1730920277974,-500.0,0.00029315,2]
[341479084,1730920277983,-500.0,0.00029315,2]
[341479085,1730920277993,-1605.02,0.00029315,2]
[341479086,1730920278003,-271.12,0.00029315,2]
[341479087,1730920278012,-652.62,0.00029315,2]
[341479088,1730920278022,-523.7377482,0.00029315,2]
[341479089,1730920278031,-500.0,0.00029315,2]
[341479090,1730920278041,-500.0,0.00029315,2]
[341479091,1730920278051,-500.0,0.00029315,2]
[341479092,1730920278061,-500.0,0.00029315,2]
[341479093,1730920278071,-1379.21,0.00029315,2]
[341479094,1730920278080,-1209.69,0.00029315,2]
[341479095,1730920278090,-615.74900805,0.00029315,2]
[341479096,1730920278101,-1638.01,0.00029315,2]
[341479097,1730920278112,-500.0,0.00029315,2]
[341479098,1730920278122,-500.0,0.00029315,2]
[341479099,1730920278132,-1179.88,0.00029315,2]
[341479100,1730920278142,-500.0,0.00029315,2]
[341479101,1730920278152,-500.0,0.00029315,2]
[341479102,1730920278162,-639.69,0.00029315,2]
[341479103,1730920278172,-600.21,0.00029315,2]
[341479104,1730920278181,-500.0,0.00029315,2]
[341479105,1730920278191,-500.0,0.00029315,2]
[341479106,1730920278200,-500.0,0.00029315,2]
[341479107,1730920278210,-912.36,0.00029315,2]
[341479108,1730920278219,-409.30985634,0.00029315,2]
[341479109,1730920278229,-500.0,0.00029315,2]
[341479110,1730920278239,-508.65,0.00029315,2]
[341479111,1730920278249,-500.0,0.00029315,2]
[341479112,1730920278259,-500.0,0.00029315,2]
[341479113,1730920278269,-610.62,0.00029315,2]
[341479114,1730920278278,-500.0,0.00029315,2]
[341479115,1730920278288,-500.0,0.00029315,2]
[341479116,1730920278298,-500.0,0.00029315,2]
[341479117,1730920278307,-500.0,0.00029315,2]
[341479118,1730920278317,-500.0,0.00029315,2]
[341479119,1730920278327,-500.0,0.00029315,2]
[341479120,1730920278337,-1403.53,0.00029315,2]
[341479121,1730920278346,-951.98,0.00029315,2]
[341479122,1730920278356,-366.78182478,0.00029315,2]
[341479123,1730920278367,-532.99825993,0.00029315,2]
[341479124,1730920278377,-1718.49,0.00029315,2]
[341479125,1730920278386,-500.0,0.00029315,2]
[341479126,1730920278396,-770.26,0.00029315,2]
[341479127,1730920278406,-534.23,0.00029315,2]
[341479128,1730920278415,-886.88,0.00029315,2]
[341479129,1730920278425,-500.0,0.00029315,2]
[341479130,1730920278434,-500.0,0.00029315,2]
[341479131,1730920278444,-591.92,0.00029315,2]
[341479132,1730920278453,-3128.73,0.00029315,2]
[341479133,1730920278464,-1587.38,0.00029315,2]
[341479134,1730920278473,-500.0,0.00029315,2]
[341479135,1730920278483,-672.38,0.00029315,2]
[341479136,1730920278493,-1225.74,0.00029315,2]
[341479137,1730920278503,-631.72,0.00029315,2]
[341479138,1730920278513,-500.0,0.00029315,2]
[341479139,1730920278523,-1710.63,0.00029315,2]
[341479140,1730920278533,-500.0,0.00029315,2]
[341479141,1730920278543,-602.84619467,0.00029315,2]
[341479142,1730920278553,-813.74,0.00029315,2]
[341479143,1730920278562,-500.0,0.00029315,2]
[341479144,1730920278572,-500.0,0.00029315,2]
[341479145,1730920278581,-500.0,0.00029315,2]
[341479146,1730920278591,-747.59,0.00029315,2]
[341479147,1730920278601,-1093.9,0.00029315,2]
[341479148,1730920278613,-500.0,0.00029315,2]
[341479149,1730920278623,-500.0,0.00029315,2]
[341479150,1730920278634,-500.0,0.00029315,2]
[341479151,1730920278645,-500.0,0.00029315,2]
[341479152,1730920278654,-500.0,0.00029315,2]
[341479153,1730920278664,-559.12,0.00029315,2]
[341479154,1730920278674,-500.0,0.00029315,2]
[341479155,1730920278684,-500.0,0.00029315,2]
[341479156,1730920278694,-869.22,0.00029315,2]
[341479157,1730920278703,-500.0,0.00029315,2]
[341479158,1730920278714,-815.31,0.00029315,2]
[341479159,1730920278724,-828.15,0.00029315,2]
[341479160,1730920278733,-500.0,0.00029315,2]
[341479161,1730920278742,-948.69,0.00029315,2]